bitfinex-derivatives/quotes_BTCF0:USTF0_20241223
["timestamp","ask_amount","ask_price","bid_price","bid_amount"]
[1734960038030,0.00156401,95943.0,95942.0,0.054174]
[1734960038235,0.12566674,95943.0,95942.0,0.054174]
[1734960039332,0.12566674,95943.0,95940.0,0.26027399]
[1734960041039,0.12566674,95943.0,95942.0,0.052174]
[1734960041453,0.17784074,95943.0,95940.0,0.001]
[1734960041642,0.192774,95942.0,95940.0,0.001]
[1734960042143,0.052175,95941.0,95929.0,0.052181]
[1734960042444,0.3608,95930.0,95929.0,0.052181]
[1734960043247,0.3608,95930.0,95921.0,0.052185]
[1734960043552,0.3608,95930.0,95917.0,0.24909357]
[1734960043553,0.052183,95927.0,95917.0,0.24909357]
[1734960043746,0.052183,95927.0,95916.0,0.052188]
[1734960044346,0.3608,95928.0,95901.0,0.3608]
[1734960044643,0.052184,95924.0,95913.0,0.05219]
[1734960045652,0.052184,95924.0,95914.0,0.052189]
[1734960046252,0.05074435,95923.0,95914.0,0.052189]
[1734960047642,0.06374435,95923.0,95914.0,0.052189]
[1734960048357,0.06374435,95923.0,95900.0,0.08361451]
[1734960048650,0.06374435,95923.0,95919.0,0.052187]
[1734960049156,0.24965681,95923.0,95919.0,0.052187]
[1734960049650,0.24965681,95923.0,95913.0,0.05219]
[1734960049850,0.24965681,95923.0,95914.0,0.052189]
[1734960050254,0.24965681,95923.0,95920.0,0.052186]
[1734960050755,0.06374435,95923.0,95920.0,0.052186]
[1734960051342,0.06374435,95923.0,95913.0,0.05219]
[1734960051543,0.06374435,95923.0,95900.0,0.08361451]
[1734960051743,0.06374435,95923.0,95914.0,0.052189]
[1734960052149,0.06374435,95923.0,95910.0,0.08361451]
[1734960052454,0.11281181,95925.0,95924.0,0.052184]
[1734960052757,0.11281181,95925.0,95924.0,0.412984]
[1734960053557,0.09293604,95926.0,95925.0,0.052184]
[1734960055050,0.09393604,95926.0,95925.0,0.054184]
[1734960055352,0.3618,95926.0,95925.0,0.054184]
[1734960056653,0.38240494,95926.0,95925.0,0.054184]
[1734960058557,0.38240494,95926.0,95925.0,0.002]
[1734960063654,0.38240494,95926.0,95925.0,0.012]
[1734960065053,0.43458794,95926.0,95925.0,0.012]
[1734960069162,0.48534224,95926.0,95925.0,0.012]
[1734960082183,0.43315924,95926.0,95925.0,0.064184]
[1734960082386,0.43315924,95926.0,95925.0,0.012]
[1734960082967,0.43315924,95926.0,95925.0,0.064184]
[1734960083163,0.43315924,95926.0,95925.0,0.012]
[1734960086676,0.48534224,95926.0,95925.0,0.012]
[1734960087978,0.43315924,95926.0,95925.0,0.012]
[1734960089375,0.48534224,95926.0,95922.0,0.08539999]
[1734960090082,0.43315924,95926.0,95922.0,0.08539999]
[1734960090381,0.43215924,95926.0,95925.0,0.052184]
[1734960090981,0.38140494,95926.0,95925.0,0.052184]
[1734960091577,0.38240494,95926.0,95925.0,0.061184]
[1734960091777,0.38240494,95926.0,95925.0,0.009]
[1734960092085,0.43315283,95926.0,95925.0,0.011]
[1734960094477,0.43315283,95926.0,95922.0,0.02439998]
[1734960094682,0.43315283,95926.0,95922.0,0.07658498]
[1734960095275,0.43315283,95926.0,95923.0,0.052184]
[1734960096485,0.05074789,95925.0,95923.0,0.052184]
[1734960097578,0.05074789,95925.0,95924.0,0.052184]
[1734960097788,0.05174789,95925.0,95924.0,0.052184]
[1734960098882,0.3608,95937.0,95924.0,0.052184]
[1734960098883,0.3608,95937.0,95936.0,0.052178]
[1734960099383,0.3608,95937.0,95924.0,0.3608]
[1734960099585,0.052178,95935.0,95927.0,0.08361451]
[1734960099882,0.052178,95935.0,95927.0,0.13579651]
[1734960099883,0.052179,95933.0,95927.0,0.13579651]
[1734960100079,0.21745515,95935.0,95929.0,0.052181]
[1734960100681,0.21745515,95935.0,95930.0,0.052181]
[1734960100981,0.21745515,95935.0,95932.0,0.05218]
[1734960101185,0.001,95935.0,95933.0,0.052179]
[1734960102680,0.001,95935.0,95933.0,0.053179]
[1734960103284,0.3608,95937.0,95936.0,0.052178]
[1734960104475,0.3608,95937.0,95936.0,0.001]
[1734960104692,0.3608,95937.0,95936.0,0.002]
[1734960104879,0.3608,95937.0,95936.0,0.054178]
[1734960105685,0.54738111,95937.0,95936.0,0.054178]
[1734960109480,0.54738111,95937.0,95936.0,0.052178]
[1734960111088,0.3608,95937.0,95936.0,0.052178]
[1734960111597,0.18658111,95942.0,95941.0,0.052175]
[1734960112611,0.18658111,95942.0,95937.0,0.052177]
[1734960112811,0.1361,95941.0,95938.0,0.052176]
[1734960113013,0.1361,95941.0,95926.0,0.052183]
[1734960113312,0.1353,95940.0,95939.0,0.052176]
[1734960114410,0.1353,95940.0,95927.0,0.0637905]
[1734960114619,0.3608,95934.0,95933.0,0.052179]
[1734960116116,0.41154138,95934.0,95933.0,0.052179]
[1734960116708,0.41254138,95934.0,95933.0,0.052179]
[1734960119417,0.41254138,95934.0,95927.0,0.04396949]
[1734960120024,0.41254138,95934.0,95933.0,0.052179]
[1734960120621,0.41154138,95934.0,95933.0,0.052179]
[1734960120808,0.41254138,95934.0,95933.0,0.052179]
[1734960121117,0.41254138,95934.0,95902.0,0.31025581]
[1734960121118,0.052192,95910.0,95902.0,0.31025581]
[1734960121319,0.7216,95910.0,95884.0,0.31709923]
[1734960121523,0.3608,95897.0,95884.0,0.31709923]
[1734960122326,0.41154138,95897.0,95882.0,0.0014]
[1734960122621,0.052201,95894.0,95875.0,0.052211]
[1734960123015,0.052201,95894.0,95876.0,0.05221]
[1734960123224,0.052201,95894.0,95878.0,0.052209]
[1734960123423,0.3608,95895.0,95878.0,0.052209]
[1734960123616,0.3608,95880.0,95878.0,0.052209]
[1734960127716,0.12382033,95879.0,95878.0,0.052209]
[1734960129124,0.3608,95880.0,95878.0,0.052209]
[1734960130326,0.37530688,95880.0,95878.0,0.052209]
[1734960132027,0.46799853,95880.0,95878.0,0.052209]
[1734960133225,0.37530688,95880.0,95878.0,0.052209]
[1734960133725,0.37530688,95880.0,95872.0,0.3608]
[1734960133928,0.37530688,95880.0,95878.0,0.052209]
[1734960134325,0.09269165,95881.0,95872.0,0.3608]
[1734960134521,6.5e-07,95882.0,95880.0,0.413008]
[1734960134721,6.5e-07,95882.0,95881.0,0.1371]
[1734960135315,0.18607967,95902.0,95893.0,0.052201]
[1734960135521,0.18607967,95902.0,95893.0,0.413001]
[1734960136430,0.3608,95911.0,95910.0,0.052192]
[1734960136728,0.15506639,95915.0,95914.0,0.052189]
[1734960138233,0.00156496,95917.0,95910.0,0.3608]
[1734960138441,0.00156496,95917.0,95916.0,0.052188]
[1734960140434,0.00256496,95917.0,95916.0,0.052188]
[1734960141027,0.00556496,95917.0,95916.0,0.052188]
[1734960141334,0.00256496,95917.0,95916.0,0.052188]
[1734960141520,0.00456496,95917.0,95916.0,0.052188]
[1734960141726,0.00456496,95917.0,95911.0,0.052191]
[1734960141933,0.00456496,95917.0,95890.0,0.08361451]
[1734960142135,0.3608,95907.0,95890.0,0.08361451]
[1734960143035,0.3608,95899.0,95890.0,0.08361451]
[1734960143534,0.3608,95899.0,95897.0,0.052199]
[1734960144137,0.3608,95899.0,95893.0,0.052201]
[1734960144439,0.1393,95898.0,95893.0,0.052201]
[1734960144638,0.1393,95898.0,95880.0,0.08361451]
[1734960145039,0.15506639,95895.0,95889.0,0.052203]
[1734960145240,0.15506639,95895.0,95880.0,0.08361451]
[1734960145939,0.15506639,95893.0,95888.0,0.052204]
[1734960146138,0.15506639,95893.0,95888.0,0.052203]
[1734960146331,0.3608,95889.0,95888.0,0.052203]
[1734960147329,0.3618,95889.0,95888.0,0.052203]
[1734960148043,0.3628,95889.0,95888.0,0.052203]
[1734960148443,0.51786639,95889.0,95888.0,0.052203]
[1734960149842,0.41356578,95889.0,95888.0,0.052203]
[1734960152250,0.41356578,95889.0,95874.0,0.2796]
[1734960152450,0.3608,95880.0,95879.0,0.052208]
[1734960153464,0.41156578,95880.0,95873.0,0.05377632]
[1734960154044,0.41156578,95880.0,95874.0,0.052211]
[1734960154550,0.41156578,95880.0,95873.0,0.00156432]
[1734960154551,0.052211,95874.0,95873.0,0.00156432]
[1734960155254,0.052218,95861.0,95848.0,0.052225]
[1734960155448,0.3608,95852.0,95848.0,0.052225]
[1734960155751,0.3608,95852.0,95850.0,0.052224]
[1734960156644,0.3618,95852.0,95850.0,0.052224]
[1734960159055,0.3618,95852.0,95840.0,0.44441451]
[1734960159252,0.3618,95852.0,95845.0,0.052227]
[1734960159455,0.3618,95852.0,95840.0,0.44581451]
[1734960159657,0.3618,95852.0,95846.0,0.052226]
[1734960159860,0.3618,95852.0,95847.0,0.052226]
[1734960160247,0.3628,95852.0,95847.0,0.052226]
[1734960160551,0.3628,95852.0,95840.0,0.0014]
[1734960160857,0.3628,95852.0,95835.0,0.00156511]
[1734960160858,0.3608,95843.0,95835.0,0.00156511]
[1734960161149,0.3608,95836.0,95827.0,0.052237]
[1734960161378,0.3608,95828.0,95827.0,0.052237]
[1734960161555,0.3608,95828.0,95810.0,0.3608]
[1734960161856,0.3608,95812.0,95790.0,0.08361451]
[1734960162152,0.3608,95820.0,95808.0,0.3608]
[1734960162456,0.3608,95820.0,95819.0,0.052241]
[1734960162863,0.01422191,95831.0,95827.0,0.052237]
[1734960163156,0.15484744,95841.0,95820.0,0.08361451]
[1734960163361,0.15484744,95841.0,95836.0,0.052232]
[1734960163567,0.3608,95843.0,95837.0,0.1324]
[1734960164455,0.3608,95843.0,95831.0,0.2684]
[1734960164752,0.413028,95843.0,95831.0,0.1305]
[1734960165057,0.3608,95833.0,95807.0,0.3608]
[1734960165259,0.08361451,95820.0,95807.0,0.1305]
[1734960165560,0.052246,95811.0,95807.0,0.1305]
[1734960165756,0.052247,95809.0,95807.0,0.1305]
[1734960166058,0.3608,95814.0,95807.0,0.1305]
[1734960167769,0.3608,95814.0,95804.0,0.052249]
[1734960169058,0.3608,95806.0,95800.0,0.1]
[1734960169655,0.1289,95805.0,95800.0,0.1]
[1734960169956,0.05225,95804.0,95800.0,0.1]
[1734960170972,0.05225,95804.0,95793.0,0.050255]
[1734960171664,0.1289,95805.0,95771.0,0.326967]
[1734960171866,0.1289,95805.0,95789.0,0.052257]
[1734960172056,0.1289,95805.0,95795.0,0.052254]
[1734960172255,0.14324533,95805.0,95785.0,7.787e-05]
[1734960172770,0.3608,95798.0,95786.0,0.052259]
[1734960172962,0.3608,95798.0,95787.0,0.052258]
[1734960173655,0.3608,95798.0,95785.0,7.787e-05]
[1734960173854,0.3608,95798.0,95788.0,0.413058]
[1734960174051,0.3608,95798.0,95790.0,0.052257]
[1734960175257,0.3618,95798.0,95790.0,0.052257]
[1734960175658,0.3638,95798.0,95790.0,0.052257]
[1734960175858,0.3688,95798.0,95792.0,0.052256]
[1734960176078,0.3688,95798.0,95793.0,0.052255]
[1734960176968,0.3688,95798.0,95782.0,0.3608]
[1734960177265,0.3688,95798.0,95797.0,0.052253]
[1734960178473,0.3708,95798.0,95797.0,0.052253]
[1734960178658,0.3718,95798.0,95797.0,0.052253]
[1734960179869,0.3728,95798.0,95797.0,0.052253]
[1734960185673,0.3728,95798.0,95782.0,0.3608]
[1734960185868,0.3728,95798.0,95795.0,0.052254]
[1734960186770,0.3728,95798.0,95782.0,0.3608]
[1734960186964,0.3688,95798.0,95782.0,0.3608]
[1734960187169,0.3698,95798.0,95796.0,0.052254]
[1734960187866,0.3638,95798.0,95796.0,0.052254]
[1734960188367,0.3648,95798.0,95796.0,0.052254]
[1734960188572,0.3728,95798.0,95796.0,0.052254]
[1734960190277,0.52699029,95798.0,95796.0,0.052254]
[1734960190777,0.52699029,95798.0,95782.0,0.3608]
[1734960191277,0.52699029,95798.0,95788.0,0.052258]
[1734960191681,0.15419029,95793.0,95788.0,0.052258]
[1734960192182,0.15419029,95793.0,95782.0,0.3608]
[1734960192386,0.15419029,95793.0,95789.0,0.052257]
[1734960192570,0.15419029,95793.0,95790.0,0.052257]
[1734960193069,0.15419029,95793.0,95782.0,0.3608]
[1734960193270,0.3608,95789.0,95782.0,0.3608]
[1734960193476,0.3608,95789.0,95787.0,0.052258]
[1734960194071,0.15419029,95791.0,95789.0,0.052257]
[1734960194573,0.008,95793.0,95789.0,0.052257]
[1734960194877,0.18502835,95794.0,95789.0,0.052257]
[1734960195073,0.18502835,95794.0,95784.0,0.05226]
[1734960195274,0.18502835,95794.0,95782.0,0.3608]
[1734960195574,0.3608,95783.0,95760.0,0.08361451]
[1734960195880,0.3608,95772.0,95771.0,0.052267]
[1734960196781,0.007,95791.0,95782.0,0.052261]
[1734960196978,0.002,95791.0,95790.0,0.052257]
[1734960197276,0.01546199,95791.0,95790.0,0.052257]
[1734960197467,0.21745515,95792.0,95790.0,0.052257]
[1734960197668,0.21745515,95792.0,95791.0,0.052257]
[1734960197970,0.23138593,95792.0,95791.0,0.052257]
[1734960198488,0.01393078,95792.0,95791.0,0.052257]
[1734960198782,0.006,95792.0,95791.0,0.052257]
[1734960199667,0.009,95792.0,95791.0,0.052257]
[1734960199870,0.05981105,95792.0,95791.0,0.052257]
[1734960201678,0.24622512,95792.0,95791.0,0.052257]
[1734960204878,0.10038812,95792.0,95791.0,0.052257]
[1734960205084,0.21745515,95804.0,95791.0,0.765314]
[1734960205277,0.21745515,95804.0,95803.0,0.41305]
[1734960206287,0.15539024,95807.0,95804.0,0.052249]
[1734960206475,0.15539024,95807.0,95806.0,0.052248]
[1734960207886,0.001,95807.0,95806.0,0.056248]
[1734960209369,0.001,95807.0,95803.0,0.397698]
[1734960209580,0.001,95807.0,95803.0,0.396298]
[1734960209980,0.001,95807.0,95806.0,0.052248]
[1734960210680,0.01336298,95809.0,95808.0,0.052247]
[1734960210881,0.15539024,95811.0,95810.0,0.052246]
[1734960211888,0.16882472,95811.0,95810.0,0.052246]
[1734960212789,0.15539024,95811.0,95810.0,0.052246]
[1734960212978,2.4e-07,95811.0,95810.0,0.052246]
[1734960213375,0.2708,95828.0,95824.0,0.052239]
[1734960213782,0.37479083,95825.0,95824.0,0.052239]
[1734960214495,0.37679083,95825.0,95816.0,0.031482]
[1734960214684,0.37779083,95825.0,95816.0,0.031482]
[1734960215891,0.37779083,95825.0,95824.0,0.052239]
[1734960216080,0.01699083,95825.0,95824.0,0.052239]
[1734960216281,0.01499083,95825.0,95824.0,0.052239]
[1734960216482,0.01699083,95825.0,95824.0,0.052239]
[1734960219388,0.01699083,95825.0,95815.0,0.08361451]
[1734960219791,0.01699083,95825.0,95824.0,0.052239]
[1734960220486,0.01499083,95825.0,95824.0,0.052239]
[1734960220792,0.01699083,95825.0,95824.0,0.052239]
[1734960224385,0.01699083,95825.0,95816.0,0.031482]
[1734960224992,0.01699083,95825.0,95824.0,0.052239]
[1734960228395,0.067787,95825.0,95824.0,0.052239]
[1734960229500,0.067787,95825.0,95815.0,0.06285351]
[1734960230504,0.066787,95825.0,95815.0,0.06285351]
[1734960230801,0.067787,95825.0,95815.0,0.06285351]
[1734960231001,0.065787,95825.0,95824.0,0.052239]
[1734960231202,0.01699083,95825.0,95824.0,0.052239]
[1734960232704,0.06778704,95825.0,95824.0,0.052239]
[1734960234401,0.06778704,95825.0,95816.0,0.052243]
[1734960234602,0.06778704,95825.0,95824.0,0.052239]
[1734960235801,0.06578704,95825.0,95824.0,0.052239]
[1734960236001,0.06778704,95825.0,95824.0,0.052239]
[1734960236601,0.01336195,95831.0,95822.0,0.3608]
[1734960236902,1.5e-07,95833.0,95832.0,0.052234]
[1734960237498,0.01494247,95854.0,95852.0,0.052223]
[1734960237813,0.3608,95868.0,95858.0,0.05222]
[1734960237814,0.24884873,95866.0,95858.0,0.05222]
[1734960238105,0.24884873,95866.0,95858.0,0.13583451]
[1734960238491,0.24884873,95866.0,95858.0,0.08361451]
[1734960238692,0.24884873,95866.0,95865.0,0.052216]
[1734960239303,0.37469879,95868.0,95867.0,0.052215]
[1734960239605,0.37469879,95868.0,95858.0,0.06282951]
[1734960239808,0.1421,95867.0,95858.0,0.06282951]
[1734960240002,0.1421,95867.0,95866.0,0.052216]
[1734960242800,0.1441,95867.0,95861.0,0.052218]
[1734960242997,0.1441,95867.0,95864.0,0.052217]
[1734960243502,0.1441,95867.0,95841.0,0.18724586]
[1734960243503,0.1431,95867.0,95841.0,0.18724586]
[1734960243699,0.3608,95842.0,95835.0,0.13788532]
[1734960243897,0.2724,95841.0,95827.0,0.24950498]
[1734960244108,0.3608,95832.0,95820.0,0.09439934]
[1734960244408,0.3608,95821.0,95820.0,0.0014]
[1734960244614,0.3608,95821.0,95819.0,0.23301297]
[1734960245503,0.3608,95821.0,95812.0,0.3608]
[1734960245703,0.3608,95813.0,95807.0,0.052247]
[1734960246906,0.18655516,95822.0,95812.0,0.3608]
[1734960247106,0.18655516,95822.0,95821.0,0.41304]
[1734960247505,0.01132525,95822.0,95821.0,0.41304]
[1734960248310,0.01370068,95841.0,95821.0,0.41304]
[1734960248504,0.1431,95853.0,95831.0,0.3608]
[1734960248704,0.1431,95853.0,95849.0,0.052225]
[1734960248905,0.15676918,95853.0,95849.0,0.052225]
[1734960249613,0.15676918,95853.0,95840.0,0.06283951]
[1734960249814,0.16476918,95853.0,95850.0,0.052224]
[1734960250308,0.3608,95851.0,95821.0,0.001]
[1734960250520,0.3608,95828.0,95811.0,0.3608]
[1734960250711,0.3608,95820.0,95818.0,0.08361451]
[1734960250899,0.3608,95820.0,95817.0,0.052242]
[1734960251105,0.3608,95820.0,95818.0,0.052241]
[1734960252004,0.3628,95820.0,95818.0,0.052241]
[1734960252804,0.3688,95820.0,95818.0,0.052241]
[1734960253309,0.3688,95820.0,95800.0,0.08361451]
[1734960253515,0.3608,95808.0,95800.0,0.08361451]
[1734960253707,0.3608,95808.0,95807.0,0.052248]
[1734960256213,0.3618,95808.0,95807.0,0.052248]
[1734960258622,0.001,95808.0,95807.0,0.052248]
[1734960263924,0.09281828,95825.0,95824.0,0.052239]
[1734960264322,0.1055748,95825.0,95824.0,0.052239]
[1734960265124,0.01675652,95825.0,95824.0,0.052239]
[1734960265326,0.004,95825.0,95824.0,0.052239]
[1734960265514,0.013,95825.0,95824.0,0.052239]
[1734960266720,1e-06,95825.0,95824.0,0.413039]
[1734960267720,0.242811,95837.0,95836.0,0.052232]
[1734960267925,0.1407,95849.0,95841.0,0.052229]
[1734960268119,0.01311938,95848.0,95841.0,0.052229]
[1734960268725,0.01311938,95848.0,95837.0,0.2782]
[1734960268927,0.18565381,95851.0,95850.0,0.052224]
[1734960269425,0.3608,95856.0,95847.0,0.031448]
[1734960269917,0.3608,95856.0,95854.0,0.052222]
[1734960271419,0.3608,95856.0,95854.0,0.053222]
[1734960272424,0.3608,95856.0,95854.0,0.054222]
[1734960272623,0.3608,95855.0,95834.0,0.00156494]
[1734960272925,0.052234,95833.0,95810.0,0.08361451]
[1734960273129,0.3608,95827.0,95800.0,0.08361451]
[1734960273326,0.3608,95827.0,95810.0,0.08361451]
[1734960273544,0.3608,95827.0,95822.0,0.052239]
[1734960273729,0.3608,95827.0,95815.0,0.052243]
[1734960274030,0.3608,95816.0,95814.0,0.052244]
[1734960275628,0.3628,95816.0,95814.0,0.052244]
[1734960275834,0.1363,95815.0,95814.0,0.052244]
[1734960277223,0.1373,95815.0,95814.0,0.052244]
[1734960277829,0.1363,95815.0,95814.0,0.053244]
[1734960278830,0.1363,95815.0,95814.0,0.054244]
[1734960279221,0.1363,95815.0,95814.0,0.053244]
[1734960279629,0.1363,95815.0,95814.0,0.054244]
[1734960279931,0.1363,95815.0,95814.0,0.055244]
[1734960280322,0.1373425,95815.0,95814.0,0.054244]
[1734960281524,0.1383425,95815.0,95814.0,0.052244]
[1734960282130,0.1373425,95815.0,95814.0,0.052244]
[1734960282341,0.1383425,95815.0,95814.0,0.052244]
[1734960282617,0.4991425,95815.0,95814.0,0.052244]
[1734960283227,0.4981425,95815.0,95814.0,0.052244]
[1734960283534,0.4991425,95815.0,95814.0,0.052244]
[1734960286538,0.0020425,95815.0,95814.0,0.052244]
[1734960288539,0.0040425,95815.0,95814.0,0.052244]
[1734960288834,0.0050425,95815.0,95814.0,0.052244]
[1734960289028,0.0020425,95815.0,95814.0,0.052244]
[1734960289230,0.0050425,95815.0,95814.0,0.052244]
[1734960291525,0.0040425,95815.0,95814.0,0.052244]
[1734960291838,0.0050425,95815.0,95814.0,0.052244]
[1734960292337,0.0040425,95815.0,95814.0,0.052244]
[1734960292527,0.0050425,95815.0,95814.0,0.052244]
[1734960293137,0.0040425,95815.0,95814.0,0.052244]
[1734960293335,0.0050425,95815.0,95814.0,0.052244]
[1734960294152,0.0020425,95815.0,95814.0,0.052244]
[1734960294440,0.0050425,95815.0,95814.0,0.052244]
[1734960295031,0.0182373,95815.0,95814.0,0.052244]
[1734960296233,0.0182373,95815.0,95803.0,0.05225]
[1734960296440,0.0182373,95815.0,95814.0,0.052244]
[1734960297328,0.0152373,95815.0,95814.0,0.052244]
[1734960297933,0.0142373,95815.0,95814.0,0.052244]
[1734960298134,0.0172373,95815.0,95814.0,0.052244]
[1734960298934,0.0202373,95815.0,95814.0,0.052244]
[1734960299135,0.0252373,95815.0,95814.0,0.053244]
[1734960301640,0.17805001,95815.0,95814.0,0.053244]
[1734960302139,0.17505001,95815.0,95814.0,0.053244]
[1734960302343,0.17805001,95815.0,95814.0,0.053244]
[1734960302539,0.15885521,95815.0,95814.0,0.052244]
[1734960302833,0.16585521,95815.0,95814.0,0.053244]
[1734960303033,0.06184579,95815.0,95814.0,0.053244]
[1734960304149,0.0110425,95815.0,95814.0,0.053244]
[1734960304839,0.0040425,95815.0,95814.0,0.052244]
[1734960305145,0.0070425,95815.0,95814.0,0.052244]
[1734960305335,0.05784579,95815.0,95814.0,0.052244]
[1734960305532,0.06184579,95815.0,95814.0,0.053244]
[1734960306243,0.05484579,95815.0,95814.0,0.052244]
[1734960306536,0.05884579,95815.0,95814.0,0.052244]
[1734960306743,0.05684579,95815.0,95814.0,0.052244]
[1734960308445,0.06084579,95815.0,95814.0,0.053244]
[1734960309037,0.05884579,95815.0,95814.0,0.053244]
[1734960309238,0.05284579,95815.0,95814.0,0.052244]
[1734960309439,0.05684579,95815.0,95814.0,0.052244]
[1734960310043,0.05884579,95815.0,95814.0,0.052244]
[1734960311843,0.05484579,95815.0,95814.0,0.052244]
[1734960312043,0.06084579,95815.0,95814.0,0.052244]
[1734960312447,0.05384579,95815.0,95814.0,0.052244]
[1734960312648,0.05784579,95815.0,95814.0,0.052244]
[1734960312851,0.05584579,95815.0,95814.0,0.053244]
[1734960313541,0.05584579,95815.0,95814.0,0.052244]
[1734960313752,0.05184579,95815.0,95814.0,0.055244]
[1734960315044,0.05184579,95815.0,95814.0,0.054244]
[1734960315249,0.05784579,95815.0,95814.0,0.052244]
[1734960315750,0.05784579,95815.0,95802.0,0.05225]
[1734960315751,0.05784579,95815.0,95795.0,0.2503443]
[1734960315946,0.3608,95809.0,95795.0,0.2503443]
[1734960316141,0.3608,95796.0,95795.0,0.20449199]
[1734960316351,0.3618425,95796.0,95795.0,0.052254]
[1734960316552,0.4959425,95796.0,95795.0,0.052254]
[1734960317351,0.1351425,95796.0,95795.0,0.052254]
[1734960317852,0.05184579,95796.0,95795.0,0.052254]
[1734960318441,0.06455783,95796.0,95795.0,0.055254]
[1734960319042,0.01375454,95796.0,95795.0,0.055254]
[1734960320763,0.01375454,95796.0,95795.0,0.332754]
[1734960321349,0.01375454,95796.0,95795.0,0.331754]
[1734960321552,0.01375454,95796.0,95795.0,0.329754]
[1734960321755,0.01575454,95796.0,95795.0,0.329754]
[1734960322149,0.01375454,95796.0,95795.0,0.330754]
[1734960322557,0.01375454,95796.0,95795.0,0.053254]
[1734960324456,0.01375454,95796.0,95795.0,0.052254]
[1734960324656,0.01575454,95796.0,95795.0,0.052254]
[1734960324855,0.01575454,95796.0,95794.0,0.00156563]
[1734960325157,0.3608,95795.0,95794.0,0.00156563]
[1734960325359,0.3618425,95795.0,95794.0,0.00156563]
[1734960326154,0.3618425,95795.0,95792.0,0.0520592]
[1734960326155,0.41266059,95795.0,95792.0,0.0520592]
[1734960326466,0.0010425,95794.0,95793.0,0.052255]
[1734960327754,0.3010425,95794.0,95744.0,0.3608]
[1734960327954,0.3608,95763.0,95747.0,0.05228]
[1734960328359,0.3618425,95763.0,95747.0,0.05228]
[1734960328961,0.3618425,95763.0,95762.0,0.00456637]
[1734960329163,0.3618425,95763.0,95762.0,0.00656637]
[1734960330261,0.3618425,95763.0,95762.0,0.005]
[1734960330563,0.3618425,95763.0,95762.0,0.003]
[1734960331550,0.3658425,95763.0,95761.0,0.052273]
[1734960332060,0.3638425,95763.0,95761.0,0.052273]
[1734960332365,0.0010425,95762.0,95761.0,0.052273]
[1734960334364,0.0010425,95762.0,95761.0,0.053273]
[1734960334864,0.09374927,95762.0,95761.0,0.052273]
[1734960335058,0.09474927,95762.0,95761.0,0.053273]
[1734960335664,0.09574927,95762.0,95761.0,0.053273]
[1734960335865,0.09474927,95762.0,95761.0,0.053273]
[1734960336370,0.0010425,95762.0,95761.0,0.053273]
[1734960336669,0.0010425,95762.0,95761.0,0.054273]
[1734960338667,0.0020425,95762.0,95761.0,0.053273]
[1734960339268,0.0030425,95762.0,95761.0,0.052273]
[1734960339970,0.0020425,95762.0,95761.0,0.052273]
[1734960340377,0.0040425,95762.0,95761.0,0.052273]
[1734960340873,0.0010425,95762.0,95761.0,0.053273]
[1734960341370,0.0010425,95762.0,95761.0,0.052273]
[1734960341574,0.0010425,95762.0,95761.0,0.053273]
[1734960341769,0.0010425,95762.0,95761.0,0.054273]
[1734960342372,0.0010425,95762.0,95761.0,0.053273]
[1734960342565,0.0010425,95762.0,95761.0,0.054273]
[1734960343164,0.0010425,95762.0,95761.0,0.053273]
[1734960343572,0.0020425,95762.0,95761.0,0.052273]
[1734960344062,0.0010425,95762.0,95761.0,0.052273]
[1734960345363,0.0010425,95762.0,95761.0,0.053273]
[1734960345563,0.0010425,95762.0,95761.0,0.054273]
[1734960348357,0.0010425,95762.0,95761.0,0.053273]
[1734960348763,0.0010425,95762.0,95761.0,0.052273]
[1734960349569,0.0010425,95762.0,95755.0,0.340073]
[1734960349972,0.0010425,95762.0,95761.0,0.052273]
[1734960350470,0.12471689,95762.0,95761.0,0.052273]
[1734960351873,0.0010425,95762.0,95761.0,0.052273]
[1734960352073,0.0010425,95762.0,95761.0,0.053273]
[1734960352268,0.0010425,95762.0,95761.0,0.054273]
[1734960352475,0.0040425,95762.0,95761.0,0.053273]
[1734960353474,0.15987166,95762.0,95761.0,0.052273]
[1734960353667,0.15887166,95762.0,95761.0,0.052273]
[1734960354470,0.15887166,95762.0,95755.0,0.340073]
[1734960354970,0.05487286,95762.0,95761.0,0.052273]
[1734960355172,0.05187286,95762.0,95761.0,0.052273]
[1734960356276,0.0010425,95762.0,95761.0,0.052273]
[1734960356576,0.0010425,95762.0,95761.0,0.053273]
[1734960356973,0.3618425,95762.0,95761.0,0.053273]
[1734960357868,0.59846786,95762.0,95761.0,0.053273]
[1734960358264,0.59846786,95762.0,95755.0,0.002]
[1734960358568,0.64969736,95762.0,95756.0,0.052276]
[1734960358770,0.64969736,95762.0,95757.0,0.052275]
[1734960359073,0.65369736,95762.0,95742.0,0.3608]
[1734960359276,0.65569736,95762.0,95758.0,0.052274]
[1734960359471,0.65169736,95762.0,95758.0,0.052274]
[1734960359777,0.052274,95759.0,95755.0,0.052276]
[1734960359976,0.05083036,95761.0,95742.0,0.3608]
[1734960360176,0.05083036,95761.0,95757.0,0.002]
[1734960360775,0.05083036,95761.0,95757.0,0.054275]
[1734960360965,0.052274,95760.0,95757.0,0.054275]
[1734960361170,0.052275,95758.0,95757.0,0.002]
[1734960361872,0.052275,95758.0,95757.0,0.003]
[1734960362271,0.10310536,95758.0,95753.0,0.052277]
[1734960362467,0.10410536,95758.0,95757.0,0.001]
[1734960362870,0.052276,95755.0,95735.0,0.413087]
[1734960363068,0.05183036,95758.0,95751.0,0.3608]
[1734960363278,0.05183036,95758.0,95757.0,0.052275]
[1734960363478,0.05183036,95758.0,95757.0,0.054275]
[1734960363882,0.001,95758.0,95757.0,0.054275]
[1734960365183,0.18641161,95766.0,95757.0,0.002]
[1734960365380,0.052268,95771.0,95762.0,0.3608]
[1734960365585,0.052268,95771.0,95768.0,0.052269]
[1734960365977,0.052268,95771.0,95762.0,0.3608]
[1734960366177,0.052268,95771.0,95770.0,0.052268]
[1734960366375,0.01260096,95773.0,95772.0,0.052267]
[1734960366575,0.052265,95776.0,95772.0,0.052267]